bitfinex/quotes_ETHUSD_20251119
["timestamp","ask_amount","ask_price","bid_price","bid_amount"]
[1763589969459,0.4616,2977.2,2977.1,0.001]
[1763589969890,0.9194,2977.2,2977.1,0.001]
[1763589970902,0.4578,2977.6,2977.1,0.001]
[1763589971097,0.76993255,2977.6,2977.1,0.001]
[1763589971337,0.4616,2977.2,2977.1,0.001]
[1763589971736,0.9194,2977.2,2977.1,0.001]
[1763589972038,0.19511477,2977.2,2976.2,0.37331]
[1763589972245,0.31181675,2977.4,2976.2,0.37331]
[1763589972839,0.31181675,2977.4,2975.6,0.405504]
[1763589973020,0.4578,2977.6,2975.8,0.115]
[1763589973497,0.31181675,2977.6,2975.9,0.2958]
[1763589973689,0.4578,2977.6,2975.9,0.2958]
[1763589974097,0.76961675,2977.6,2976.0,0.3733]
[1763589974320,0.31181675,2977.5,2976.0,0.3733]
[1763589974616,0.31181675,2977.6,2976.0,0.3733]
[1763589974816,0.6391,2977.9,2976.0,0.3733]
[1763589974985,0.31181675,2977.8,2976.0,0.3733]
[1763589975183,0.76961675,2977.8,2976.0,0.4883]
[1763589975593,0.76961675,2977.8,2976.1,0.4883]
[1763589975803,0.4578,2977.7,2976.1,0.3733]
[1763589976003,0.4578,2977.7,2976.2,0.3733]
[1763589976598,0.4578,2977.7,2975.9,0.1808]
[1763589976839,2.57686349,2977.7,2975.9,0.5541]
[1763589977125,1.37970056,2977.6,2975.9,0.5541]
[1763589977312,1.03131495,2977.5,2976.0,0.3733]
[1763589977497,0.77023891,2977.4,2976.0,0.3733]
[1763589977698,0.31243891,2977.3,2976.0,0.3733]
[1763589977924,0.31243891,2977.4,2976.0,0.3743]
[1763589978092,0.4578,2977.6,2976.0,0.3743]
[1763589979335,1.48877043,2977.6,2976.0,0.3743]
[1763589979649,0.31243891,2977.5,2976.0,0.3743]
[1763589979790,0.77023891,2977.5,2976.0,0.3743]
[1763589979992,0.31243891,2977.4,2976.0,0.3743]
[1763589980400,1.03033791,2977.8,2976.0,0.3743]
[1763589980725,0.31243891,2977.7,2976.0,0.3743]
[1763589980936,0.4578,2977.7,2976.0,0.3743]
[1763589981221,0.77023891,2977.7,2976.0,0.3743]
[1763589981426,0.31243891,2977.6,2976.0,0.3743]
[1763589981623,0.4578,2977.7,2976.0,0.3743]
[1763589983510,0.31213695,2977.8,2976.0,0.3743]
[1763589983698,0.49343695,2977.9,2976.0,0.3743]
[1763589983895,0.95123695,2977.9,2976.0,0.3743]
[1763589984125,0.31213695,2977.8,2976.0,0.3743]
[1763589984752,0.76993695,2977.8,2976.1,0.115]
[1763589985130,0.4578,2977.7,2976.2,0.3733]
[1763589985806,0.4578,2977.7,2976.0,0.001]
[1763589986004,0.4578,2977.7,2976.0,0.3743]
[1763589986229,0.4578,2977.7,2976.0,0.4893]
[1763589986681,0.76993695,2977.7,2976.1,0.3733]
[1763589986816,0.31213695,2977.6,2976.1,0.3733]
[1763589987155,0.78953695,2977.6,2976.1,0.3733]
[1763589987324,0.31213695,2977.5,2976.1,0.3733]
[1763589987662,0.78953695,2977.5,2976.2,0.115]
[1763589987864,0.31213695,2977.4,2976.2,0.115]
[1763589988172,0.31318178,2977.4,2976.3,0.3733]
[1763589988315,0.4774,2977.5,2976.3,0.3733]
[1763589989552,0.4774,2977.5,2976.0,0.001]
[1763589989753,0.31318178,2977.4,2976.0,0.001]
[1763589989981,0.31318178,2977.3,2976.0,0.001]
[1763589990250,0.31318178,2977.2,2976.0,0.001]
[1763589990450,0.4774,2977.1,2976.0,0.001]
[1763589991455,0.79058178,2977.4,2976.0,0.40790215]
[1763589991659,0.6707125,2977.3,2976.0,0.3743]
[1763589991859,0.31318178,2977.2,2976.0,0.3743]
[1763589992055,0.79058178,2977.2,2976.0,0.3743]
[1763589992427,0.4774,2977.1,2976.0,0.3743]
[1763589992854,0.79058178,2977.1,2976.0,0.3743]
[1763589993061,0.4774,2977.1,2976.0,0.3743]
[1763589993431,1.51124353,2977.6,2976.0,0.3743]
[1763589993631,0.79007086,2977.5,2976.0,0.3743]
[1763589993829,0.31267086,2977.4,2976.0,0.3743]
[1763589994030,0.4774,2977.5,2976.1,0.115]
[1763589994532,0.4774,2977.5,2976.2,0.3733]
[1763589994732,0.79007086,2977.5,2976.2,0.3733]
[1763589994937,0.31267086,2977.4,2976.2,0.3733]
[1763589995160,0.4774,2977.5,2976.2,0.3733]
[1763589995926,1.80155715,2977.9,2977.4,0.3733]
[1763589995927,0.31267086,2977.7,2977.4,0.3733]
[1763589996154,0.31267086,2977.8,2977.4,0.3733]
[1763589996376,0.002,2978.1,2977.4,0.3733]
[1763589996936,0.31515893,2978.1,2977.4,0.3733]
[1763589997930,0.002,2978.1,2977.4,0.3733]
[1763589998161,0.002,2977.7,2977.4,0.3733]
[1763589998842,0.002,2977.7,2977.6,0.3733]
[1763590001781,0.002,2977.7,2977.6,0.7466]
[1763590003945,0.002,2978.1,2977.6,0.7466]
[1763590004280,0.002,2978.1,2978.0,0.3733]
[1763590004576,0.002,2978.1,2978.0,0.4883]
[1763590004780,0.71882364,2979.9,2978.5,0.464]
[1763590005032,1.78739603,2980.5,2979.1,0.957604]
[1763590005033,0.4538,2980.5,2979.1,0.957604]
[1763590005195,0.4538,2980.5,2979.1,1.072604]
[1763590005505,0.4538,2980.5,2979.1,1.443904]
[1763590006157,0.1981,2981.1,2979.1,1.443904]
[1763590006158,0.4538,2980.9,2979.1,1.443904]
[1763590006479,0.4538,2980.9,2979.2,0.4863]
[1763590006843,0.4538,2980.9,2979.3,0.3713]
[1763590008353,0.4538,2980.9,2978.0,0.90699264]
[1763590008546,0.4538,2980.9,2979.2,0.1808]
[1763590008983,0.4538,2980.9,2979.3,0.3713]
[1763590009351,0.4538,2980.9,2979.4,0.115]
[1763590009594,0.1981,2981.1,2979.5,0.405504]
[1763590009758,0.1981,2981.1,2979.5,0.776804]
[1763590010187,0.1981,2981.1,2979.7,0.405504]
[1763590010485,0.6519,2981.1,2979.8,0.3713]
[1763590011179,0.6519,2981.1,2979.9,0.115]
[1763590011551,0.1981,2981.1,2980.0,0.3713]
[1763590011753,0.4538,2981.4,2980.0,0.3713]
[1763590012190,0.4538,2981.4,2980.1,0.115]
[1763590012361,0.002,2981.6,2980.1,0.115]
[1763590012573,0.002,2981.6,2980.2,0.3713]
[1763590012974,0.002,2981.6,2980.3,0.115]
[1763590013375,0.002,2981.6,2980.4,0.3713]
[1763590015597,0.002,2981.6,2980.5,0.115]
[1763590015767,0.002,2981.6,2980.6,0.115]
[1763590016320,0.002,2981.6,2980.6,0.4863]
[1763590016913,0.002,2981.6,2981.5,0.4712]
[1763590017272,0.92,2981.6,2981.5,0.115]
[1763590017996,0.4662,2981.6,2981.5,0.115]
[1763590018370,0.92,2981.6,2980.4,0.0999]
[1763590018566,0.92,2981.6,2980.5,0.115]
[1763590018783,0.4538,2981.5,2980.5,0.115]
[1763590019302,0.4538,2981.5,2980.5,0.4863]
[1763590019486,0.4538,2981.5,2980.6,0.405504]
[1763590020079,0.4538,2981.5,2980.7,0.115]
[1763590020276,0.002,2981.6,2980.6,0.776804]
[1763590020477,0.002,2981.6,2980.7,0.115]
[1763590020478,0.4558,2981.6,2980.7,0.115]
[1763590020682,0.6589,2980.7,2980.1,0.0999]
[1763590020911,0.6589,2980.7,2980.2,0.115]
[1763590021112,0.4642,2980.3,2979.4,0.3713]
[1763590021321,0.4538,2980.6,2979.5,0.115]
[1763590021714,0.4538,2980.6,2979.5,0.3713]
[1763590021918,0.4538,2980.6,2979.6,0.115]
[1763590022215,0.002,2981.6,2979.6,0.115]
[1763590022216,0.6485,2980.9,2979.6,0.115]
[1763590022382,0.6485,2980.9,2979.7,0.3713]
[1763590024009,0.6485,2980.9,2979.8,0.115]
[1763590024522,0.6485,2980.9,2979.8,0.4863]
[1763590025022,0.4538,2980.8,2979.2,0.1808]
[1763590025209,0.4538,2980.8,2979.3,0.115]
[1763590025608,0.4538,2980.8,2979.3,0.3713]
[1763590025813,0.4538,2980.8,2979.4,0.115]
[1763590028331,0.4538,2980.8,2979.5,0.115]
[1763590029434,0.7631595,2980.8,2979.1,0.1818]
[1763590029632,0.4538,2980.8,2979.1,0.1818]
[1763590029934,0.4901,2980.7,2979.1,0.2968]
[1763590030233,0.4901,2980.7,2979.1,0.6681]
[1763590030431,0.4901,2980.7,2979.2,0.03356605]
[1763590030631,0.4901,2980.7,2979.3,0.3713]
[1763590031226,0.4901,2980.7,2979.1,0.2968]
[1763590031227,0.4901,2980.7,2979.1,0.001]
[1763590031544,0.186,2979.4,2979.1,0.001]
[1763590031899,0.4766,2979.2,2979.1,0.001]
[1763590032704,0.9667,2979.2,2979.1,0.001]
[1763590032930,0.4766,2979.2,2979.1,0.001]
[1763590033431,0.9667,2979.2,2979.1,0.001]
[1763590034808,0.4766,2979.2,2979.1,0.001]
[1763590035010,0.4901,2980.1,2979.1,0.5531]
[1763590035233,0.4901,2980.1,2979.3,0.3713]
[1763590035610,0.4901,2980.1,2979.1,0.5531]
[1763590035611,0.4901,2980.1,2979.2,0.115]
[1763590035939,0.4901,2980.1,2979.1,0.1818]
[1763590036163,0.80148707,2980.1,2979.1,0.001]
[1763590036384,0.31138707,2980.0,2979.1,0.001]
[1763590036646,0.4901,2980.0,2979.1,0.001]
[1763590037338,0.4901,2980.0,2979.1,0.1818]
[1763590042045,0.405504,2980.6,2979.2,0.3713]
[1763590042046,0.4901,2980.6,2979.2,0.3713]
[1763590042261,0.4901,2980.6,2979.9,0.3713]
[1763590042696,0.4766,2980.0,2979.1,0.001]
[1763590043002,0.4901,2980.6,2979.1,0.001]
[1763590043003,0.6622,2979.2,2979.1,0.001]
[1763590043200,0.405504,2980.3,2979.1,0.001]
[1763590043492,0.4766,2979.2,2979.1,0.001]
[1763590043863,0.9667,2979.2,2979.1,0.001]
[1763590046275,0.186,2979.3,2979.1,0.001]
[1763590046494,0.1923,2979.7,2979.2,0.3713]
[1763590048675,0.6447,2979.7,2979.1,0.1818]
[1763590050175,0.1923,2979.7,2979.1,0.1818]
[1763590051930,0.1923,2980.1,2979.2,0.3713]
[1763590052282,0.6447,2980.1,2979.2,0.3713]
[1763590054031,0.002,2980.0,2979.2,0.3713]
[1763590054422,0.4524,2979.9,2979.1,0.001]
[1763590054619,0.4527,2979.2,2979.1,0.001]
[1763590054933,0.9051,2979.2,2979.1,0.001]
[1763590055239,0.002,2980.0,2979.1,0.95796718]
[1763590055438,0.002,2980.0,2979.9,0.3713]
[1763590055946,0.9071,2980.0,2979.1,0.1818]
[1763590056159,0.6447,2979.9,2979.1,0.1818]
[1763590056950,0.002,2980.0,2979.1,0.1818]
[1763590057156,0.4524,2979.8,2979.1,0.1818]
[1763590057931,0.4524,2979.8,2979.1,0.001]
[1763590059700,0.4524,2979.8,2979.1,0.1818]
[1763590060424,0.002,2980.0,2979.1,0.1818]
[1763590060626,0.002,2980.0,2979.2,0.3713]
[1763590063362,0.002,2980.0,2979.9,0.3713]
[1763590063716,0.002,2980.0,2979.9,0.7426]
[1763590064533,0.002,2980.0,2979.9,1.148104]
[1763590064735,0.002,2980.8,2980.0,1.31249664]
[1763590064968,0.002,2980.8,2980.2,0.4712]
[1763590065318,0.002,2980.8,2980.2,0.8425]
[1763590066319,0.002,2980.8,2980.2,0.9575]
[1763590066970,0.002,2980.8,2980.2,0.4712]
[1763590067178,0.5003,2980.8,2980.2,0.3713]
[1763590067332,0.002,2980.8,2980.2,0.7426]
[1763590068674,0.002,2980.8,2980.2,0.3713]
[1763590069660,0.4531,2980.3,2979.3,0.3713]
[1763590069871,0.4531,2980.3,2979.4,0.4863]
[1763590070272,0.4531,2980.3,2979.5,0.3713]
[1763590070571,0.002,2980.3,2979.5,0.3713]
[1763590071779,0.002,2980.3,2980.2,0.3713]
[1763590074287,0.002,2980.3,2980.1,0.0999]
[1763590074578,0.002,2980.3,2980.2,0.77615479]
[1763590074759,0.002,2980.3,2980.2,0.7426]
[1763590075539,0.002,2980.3,2980.2,0.8576]
[1763590076092,0.002,2980.3,2980.2,4.61858349]
[1763590076237,0.002,2980.6,2980.3,1.31249664]
[1763590076444,0.002,2980.6,2980.5,0.3713]
[1763590076858,0.002,2980.6,2980.5,0.7426]
[1763590078143,0.002,2980.6,2980.5,0.8576]
[1763590079387,0.002,2980.6,2980.5,1.76459264]
[1763590079770,0.002,2980.6,2980.5,1.9816023]
[1763590080692,0.002,2980.6,2980.5,0.21700966]
[1763590080854,0.9514,2980.6,2979.4,0.3713]
[1763590081055,0.4511,2980.5,2979.5,0.115]
[1763590081254,0.4511,2980.5,2979.5,0.3713]
[1763590081480,0.4983,2980.4,2979.6,0.115]
[1763590082364,0.002,2980.6,2979.7,0.03356042]
[1763590082573,0.002,2980.6,2979.7,0.405504]
[1763590082762,0.5003,2980.6,2979.8,0.115]
[1763590083783,0.002,2980.6,2979.8,0.4863]
[1763590083949,0.002,2980.6,2979.9,0.17987966]
[1763590084149,0.002,2980.6,2979.9,0.55117966]
[1763590084563,0.002,2980.6,2980.1,0.405504]
[1763590084951,0.002,2980.6,2980.2,0.4712]
[1763590085148,0.002,2980.6,2980.3,0.115]
[1763590086080,0.002,2980.6,2980.5,0.3713]
[1763590086483,0.002,2980.6,2980.3,0.115]
[1763590086687,0.002,2980.6,2980.4,0.115]
[1763590087077,0.002,2980.6,2980.5,1.148104]
[1763590087255,0.002,2980.6,2980.5,1.36511366]
[1763590089188,0.002,2980.6,2980.5,1.48011366]
[1763590089349,0.002,2980.6,2980.5,2.3871063]
[1763590089550,0.002,2980.6,2980.5,1.10881366]
[1763590089786,0.002,2980.6,2980.5,5.74224805]
[1763590091286,0.002,2981.9,2980.8,0.405504]
[1763590091488,0.002,2981.9,2981.0,0.776804]
[1763590091878,0.002,2981.9,2981.0,1.148104]
[1763590092278,0.002,2981.9,2981.1,0.405504]
[1763590092589,0.002,2981.2,2981.1,0.776804]
[1763590092761,0.002,2981.2,2981.1,5.52456311]
[1763590092957,0.002,2981.2,2981.1,5.92145243]
[1763590093267,0.002,2981.2,2981.1,5.80645243]
[1763590093456,0.002,2981.2,2981.1,5.92145243]
[1763590094490,0.002,2981.9,2981.3,0.405504]
[1763590094677,0.002,2981.9,2981.5,5.03781307]
[1763590094878,0.002,2981.9,2981.5,5.90933986]
[1763590096491,0.002,2981.9,2981.5,9.69933986]
[1763590096892,0.002,2981.9,2981.5,9.58433986]
[1763590097101,0.002,2981.9,2981.5,9.69933986]
[1763590097299,0.002,2981.9,2981.5,6.23032343]
[1763590097459,0.002,2981.9,2981.5,2.55532343]
[1763590097660,0.4875,2981.6,2981.5,1.02199264]
[1763590097876,0.002,2981.6,2981.5,1.76459264]
[1763590098084,0.002,2981.6,2981.5,2.17009664]
[1763590098401,0.002,2981.6,2981.5,1.27829264]
[1763590098596,0.002,2981.6,2981.5,1.02199264]
[1763590098763,0.4875,2981.6,2981.5,0.90699264]
[1763590098963,0.4875,2981.6,2980.6,0.3713]
[1763590098964,0.9497,2981.6,2980.6,0.3713]
[1763590099160,0.4622,2981.5,2980.7,0.115]
[1763590099377,0.4622,2981.5,2980.8,0.115]
[1763590099976,0.002,2981.6,2980.8,0.115]
[1763590100197,0.002,2981.6,2980.9,0.115]
[1763590100702,0.002,2981.6,2981.1,0.405504]
[1763590104000,0.4855,2981.2,2980.8,0.405504]
[1763590104181,0.4855,2981.2,2980.9,0.115]
[1763590104497,0.4855,2981.2,2981.0,0.405504]
[1763590105498,0.4855,2981.2,2981.1,0.115]
[1763590107315,0.4622,2981.5,2981.1,0.115]
[1763590107492,0.4622,2981.5,2980.5,4.63338111]
[1763590107694,0.4622,2981.5,2980.6,0.520504]
[1763590108014,0.4622,2981.5,2980.6,1.42749664]
[1763590108419,0.4622,2981.5,2980.4,0.405504]
[1763590108719,0.4622,2981.5,2980.3,0.001]
[1763590108924,0.4622,2981.5,2980.4,0.115]
[1763590109104,0.4622,2981.5,2981.0,0.001]
[1763590109511,0.4662,2981.1,2981.0,0.001]
[1763590110019,0.93,2981.1,2981.0,0.001]
[1763590110262,0.4662,2981.1,2981.0,0.001]
[1763590110591,0.002,2981.6,2981.0,0.001]
[1763590110592,0.4658,2981.6,2981.0,0.001]
[1763590110791,0.4658,2981.6,2981.1,0.115]
[1763590112638,0.4658,2981.6,2981.2,0.115]
[1763590112948,0.4662,2981.1,2981.0,0.001]
[1763590113247,0.93,2981.1,2981.0,0.116]
[1763590113619,0.4638,2981.5,2981.0,0.116]
[1763590113826,0.002,2981.6,2981.1,0.405504]
[1763590114013,0.002,2981.6,2981.5,0.776804]
[1763590114212,0.002,2981.6,2981.5,0.891804]
[1763590114622,0.002,2981.6,2981.5,1.263104]
[1763590116128,0.002,2981.6,2981.5,5.52411307]
[1763590118011,0.002,2981.6,2981.5,5.15281307]
[1763590118217,0.002,2981.6,2981.5,13.58925583]
[1763590120217,0.002,2981.9,2981.6,1.31249664]
[1763590120451,0.002,2981.9,2981.8,0.776804]
[1763590120816,0.002,2982.2,2981.9,0.405504]
[1763590121049,0.002,2982.2,2982.1,9.8396394]
[1763590121518,0.002,2982.2,2982.1,10.2109394]
[1763590121724,0.002,2983.6,2982.3,0.002]
[1763590121927,0.002,2984.1,2983.5,0.3693]
[1763590122154,0.002,2984.1,2983.7,13.09848278]
[1763590122452,0.002,2984.4,2984.1,0.405504]
[1763590122653,0.1816,2985.6,2984.5,0.405504]
[1763590122814,0.1816,2985.6,2984.6,0.889804]
[1763590123355,0.1816,2985.6,2984.6,1.259104]
[1763590123712,0.498,2985.3,2984.6,0.774804]
[1763590123920,0.1816,2984.9,2984.6,0.520504]
[1763590124154,0.1816,2985.6,2984.6,0.520504]
[1763590124155,0.49667822,2985.4,2984.6,0.115]
[1763590124451,0.1816,2984.9,2984.6,0.115]
[1763590124842,0.1816,2984.9,2984.7,0.115]
[1763590125153,0.1816,2985.6,2984.7,0.115]
[1763590125322,0.1816,2985.6,2984.8,0.405504]
[1763590125854,0.1816,2984.9,2984.8,0.405504]
[1763590126218,0.6796,2985.6,2984.8,0.891204]
[1763590127153,0.1816,2985.6,2984.8,0.405504]
[1763590127452,0.498,2985.5,2984.9,0.115]
[1763590127823,0.1836,2985.6,2985.2,0.405504]
[1763590128040,0.1836,2985.6,2985.3,0.115]
[1763590128832,0.002,2985.6,2985.5,0.776204]
[1763590129039,0.002,2985.6,2985.5,1.146904]
[1763590129239,0.002,2985.6,2985.3,6.81443587]
[1763590129240,0.002,2986.2,2985.9,0.405504]
[1763590129437,0.002,2986.2,2986.1,9.8390394]
[1763590129646,0.002,2987.0,2986.2,1.31249664]
[1763590129831,0.002,2987.0,2986.9,0.405504]
[1763590130362,1.1346,2987.0,2986.5,0.115]
[1763590130663,1.1346,2987.0,2986.2,0.405504]
[1763590130664,0.453,2986.3,2986.2,0.405504]
[1763590130839,0.453,2986.3,2986.2,0.115]
[1763590131039,0.951,2986.3,2986.2,0.115]
[1763590131934,0.1836,2987.0,2986.2,0.115]
[1763590132133,0.498,2986.9,2986.3,0.405504]
[1763590133140,0.453,2986.4,2985.3,0.3707]
[1763590133376,0.453,2986.3,2985.1,0.0907]
[1763590133531,0.951,2986.3,2985.2,0.115]
[1763590133735,0.951,2986.3,2985.3,0.115]
[1763590133935,0.498,2986.2,2985.3,0.115]
[1763590134241,0.498,2986.2,2985.4,0.115]
[1763590134435,0.498,2986.2,2985.5,0.115]
[1763590136065,0.498,2986.2,2985.2,0.405504]
[1763590136240,0.498,2986.2,2985.6,0.115]
[1763590136873,0.6346,2985.7,2985.6,0.115]
[1763590137070,0.6346,2985.7,2985.0,1.31249664]
[1763590137286,0.6346,2985.7,2985.1,0.115]
[1763590137664,0.6346,2985.7,2985.1,0.2057]
[1763590138294,0.6346,2985.7,2985.0,8.9721354]
[1763590138459,0.498,2985.6,2985.2,0.115]
[1763590139594,0.1816,2985.7,2985.3,0.405504]
[1763590139795,0.6796,2985.7,2985.3,0.405504]
[1763590139967,0.1816,2985.9,2985.3,0.405504]
[1763590140507,0.1816,2985.9,2985.6,0.90699264]
[1763590140820,0.1816,2985.9,2985.7,0.115]
[1763590141412,0.498,2986.7,2986.0,8.06514276]
[1763590141577,0.498,2986.7,2986.1,0.115]
[1763590141777,0.498,2986.7,2985.5,0.3707]
[1763590141778,0.453,2986.1,2984.6,0.45325242]
[1763590142009,0.453,2985.9,2984.7,8.18014276]
[1763590142212,0.453,2985.9,2984.2,8.53704276]
[1763590142415,0.6796,2985.8,2984.2,8.16634276]
[1763590142620,0.6796,2985.8,2983.2,0.1788]
[1763590142621,0.3191,2984.3,2983.7,8.06514276]
[1763590142915,0.3191,2984.3,2983.9,0.405504]
[1763590143076,0.1816,2984.3,2983.9,8.06514276]
[1763590143273,0.1816,2984.3,2984.1,0.405504]
[1763590143473,0.1816,2984.3,2984.2,0.115]
[1763590144303,0.6346,2984.3,2984.2,0.115]
[1763590144502,0.6346,2984.3,2984.0,0.90699264]
[1763590144828,0.453,2984.1,2983.6,0.115]
[1763590145033,0.453,2984.0,2983.6,0.115]
[1763590145319,0.5016,2983.7,2983.0,8.06514276]
[1763590145477,0.9996,2983.7,2983.1,1.02199264]
[1763590146617,0.498,2983.6,2983.1,1.02199264]
[1763590147515,0.0486,2983.7,2983.1,1.02199264]
[1763590147516,0.498,2983.5,2983.2,0.115]
[1763590147714,0.498,2983.5,2982.5,8.06514276]
[1763590147715,0.453,2983.2,2982.5,8.06514276]
[1763590147934,0.4585,2983.1,2982.7,0.405504]
[1763590148338,0.4585,2982.8,2982.2,8.06514276]
[1763590148630,0.4735,2983.0,2982.3,0.115]
[1763590148833,0.4735,2983.0,2982.4,0.90699264]
[1763590149032,0.4735,2983.0,2982.5,0.405504]
[1763590149234,0.4735,2983.4,2982.9,0.90699264]
[1763590149397,0.4735,2983.4,2983.0,0.115]
[1763590150001,0.4735,2983.4,2983.0,0.10828]
[1763590150434,0.0486,2983.7,2982.9,0.90699264]
[1763590150435,0.0486,2983.7,2983.1,0.115]
[1763590150639,0.4735,2983.3,2983.1,0.115]
[1763590150943,0.0486,2983.7,2983.1,0.115]
[1763590150944,0.5221,2983.7,2983.1,0.115]
[1763590151144,0.5221,2983.7,2983.2,0.115]
[1763590151449,0.4585,2983.1,2982.9,0.90699264]
[1763590151684,0.4585,2983.0,2982.2,7.70742881]
[1763590151804,0.4735,2983.6,2982.7,0.90699264]
[1763590151999,0.4735,2983.6,2983.0,7.70742881]
[1763590152612,0.4735,2983.6,2982.8,0.115]
[1763590152816,0.4735,2983.6,2982.8,7.82242881]
[1763590153018,0.4585,2982.9,2982.5,1.31249664]
[1763590153203,0.4585,2982.8,2982.5,0.90699264]
[1763590153407,0.4585,2982.6,2982.1,0.90699264]
[1763590153640,0.4735,2983.6,2982.4,7.70742881]
[1763590153805,0.4735,2983.6,2982.8,7.70742881]
[1763590154004,0.4585,2982.9,2982.4,0.90699264]
[1763590154219,0.4735,2983.6,2982.8,0.90699264]
[1763590154424,0.4735,2983.6,2982.9,0.14852442]
[1763590154903,0.4735,2983.6,2983.0,0.115]
[1763590156305,0.4735,2983.6,2983.0,7.82242881]
[1763590157546,0.1918,2983.9,2983.4,7.70742881]
[1763590157751,0.4735,2983.8,2983.5,0.115]
[1763590158249,0.1918,2983.9,2983.5,0.115]
[1763590159562,0.6653,2984.6,2983.9,1.31249664]
[1763590159866,0.6653,2984.6,2984.0,0.115]
[1763590161054,0.1918,2984.6,2984.2,7.70742881]
[1763590161561,0.4735,2985.1,2984.7,7.70742881]
[1763590161763,0.4735,2985.1,2984.8,0.115]
[1763590162074,0.6551,2985.0,2984.8,0.115]
[1763590162274,0.1816,2985.0,2984.8,0.115]
[1763590164132,0.4585,2984.9,2984.3,0.90699264]
[1763590164334,0.4585,2984.9,2984.1,0.1012]
[1763590164335,0.4585,2984.9,2984.4,0.115]
[1763590164639,0.4735,2984.8,2984.5,0.115]
[1763590164967,0.4735,2984.8,2984.1,0.405504]
[1763590165175,0.4735,2984.8,2984.3,0.405504]
[1763590165859,0.4735,2984.8,2984.0,0.90699264]
[1763590165860,0.4585,2984.4,2984.0,0.90699264]
[1763590166040,0.4585,2984.3,2984.1,0.115]
[1763590166836,0.4729,2984.2,2984.1,0.115]
[1763590167060,0.1816,2985.0,2983.9,8.61442145]
[1763590167268,0.4904,2984.6,2984.0,0.115]
[1763590167464,0.4904,2984.6,2983.9,8.61442145]
[1763590167664,0.4904,2984.6,2984.0,0.115]
[1763590167872,0.4904,2984.6,2984.1,0.90699264]
[1763590168275,0.4729,2984.2,2984.1,0.90699264]
[1763590168436,0.9633,2984.2,2984.0,0.115]
[1763590168776,0.4646,2984.1,2983.5,0.001]
[1763590168944,0.6627,2983.6,2983.5,0.001]
[1763590169150,0.6627,2983.6,2983.5,0.116]
[1763590169456,1.1531,2983.6,2983.5,0.116]
[1763590170938,0.1898,2984.0,2983.5,0.116]
[1763590171350,0.6802,2984.0,2983.5,0.116]
[1763590171768,0.4904,2983.9,2983.5,0.001]
[1763590171985,0.4729,2983.6,2983.5,0.001]
[1763590172340,0.9633,2983.6,2983.5,0.116]
[1763590172662,0.9633,2983.6,2983.5,0.001]
[1763590175073,0.9633,2983.6,2983.2,0.001]
[1763590175391,0.4684,2983.3,2983.2,0.001]
[1763590175802,0.9588,2983.3,2983.2,0.001]
[1763590182214,0.9531,2983.3,2983.2,0.001]
[1763590182721,0.4684,2983.3,2983.2,0.001]
[1763590183020,0.9531,2983.3,2983.2,0.001]
[1763590183390,0.002,2983.6,2983.2,0.001]
[1763590183811,0.4867,2983.6,2983.2,0.001]
[1763590185127,0.4942,2983.3,2983.2,0.001]
[1763590185294,0.4867,2983.6,2982.9,0.001]
[1763590185295,0.4511,2983.2,2982.9,0.001]
[1763590185613,0.4937,2983.0,2982.9,0.001]
[1763590186003,0.9784,2983.0,2982.9,0.001]
[1763590186183,0.9784,2983.0,2981.3,0.4877]
[1763590186384,0.4847,2982.9,2981.3,0.4877]
[1763590187327,0.4847,2982.9,2981.3,1.39469264]
[1763590189038,0.4847,2982.9,2981.3,0.4877]
[1763590189534,0.4847,2982.9,2981.5,0.115]
[1763590192819,0.4847,2982.9,2981.3,0.3727]
[1763590193016,0.4847,2982.9,2981.5,0.115]
[1763590194644,0.4847,2982.9,2981.3,0.3727]
[1763590194844,0.4847,2982.9,2981.5,0.115]
[1763590198141,0.4847,2982.9,2981.3,0.3727]
[1763590198347,0.4847,2982.9,2981.5,0.115]
[1763590199530,0.4847,2982.9,2981.5,0.116]
[1763590199730,0.4867,2982.9,2981.5,0.116]
[1763590200445,0.4867,2982.9,2981.5,0.4897]
[1763590203552,0.4867,2982.9,2981.5,0.3747]
[1763590203852,0.4867,2982.9,2981.5,0.4897]
[1763590204441,0.4867,2982.9,2981.7,1.68619664]
[1763590204442,0.002,2982.9,2981.7,1.68619664]
[1763590204655,0.4942,2981.7,2981.5,0.001]
[1763590205576,0.15,2981.8,2981.5,0.001]
[1763590207428,0.4942,2981.6,2981.5,0.001]
[1763590207870,0.961,2981.6,2981.5,0.001]
[1763590212647,0.199,2982.4,2981.5,0.3747]
[1763590212829,1.76949926,2982.4,2981.5,0.001]
[1763590213029,0.6658,2982.4,2981.5,0.001]
[1763590213243,0.4668,2982.3,2981.5,0.001]
[1763590214642,0.15,2983.0,2981.5,0.001]
[1763590214847,0.4668,2982.8,2981.5,0.001]
[1763590215273,0.77898632,2982.8,2981.5,0.001]
[1763590215560,0.668,2981.6,2981.5,0.001]
[1763590215986,1.1348,2981.6,2981.5,0.001]